bitfinex-derivatives/quotes_BTCF0:USTF0_20250417
["timestamp","ask_amount","ask_price","bid_price","bid_amount"]
[1744898821059,0.0603283,84292.0,84291.0,0.44999927]
[1744898821267,0.2603283,84292.0,84291.0,0.00508]
[1744898821657,0.2603283,84292.0,84284.0,0.000108]
[1744898821658,0.0593324,84287.0,84284.0,0.000108]
[1744898821965,0.1186762,84278.0,84277.0,0.00510219]
[1744898822365,0.1186917,84267.0,84266.0,0.08044]
[1744898822665,0.1186917,84267.0,84266.0,0.36540137]
[1744898822864,0.1186917,84267.0,84266.0,0.07243146]
[1744898823056,0.1186917,84267.0,84266.0,0.07235146]
[1744898823253,0.1186917,84267.0,84266.0,0.40373447]
[1744898823658,0.3608,84290.0,84274.0,0.1186819]
[1744898823858,0.0416,84289.0,84282.0,0.1186706]
[1744898824156,0.1186533,84295.0,84294.0,0.0593263]
[1744898824555,0.1779925,84290.0,84287.0,0.08044]
[1744898824763,0.1186607,84289.0,84288.0,0.1616607]
[1744898824967,0.2037607,84289.0,84288.0,0.1616607]
[1744898825162,0.2037607,84289.0,84288.0,0.0878]
[1744898825366,0.1186622,84288.0,84287.0,0.08044]
[1744898825567,0.118672,84281.0,84280.0,0.11885113]
[1744898826455,0.207972,84281.0,84280.0,0.11893113]
[1744898827166,0.208972,84281.0,84280.0,0.11893113]
[1744898827466,0.208972,84281.0,84280.0,0.00025793]
[1744898827663,0.569772,84281.0,84280.0,0.00025793]
[1744898827859,0.569772,84281.0,84280.0,0.00017793]
[1744898828069,0.749772,84281.0,84280.0,0.00017793]
[1744898828256,0.1186903,84268.0,84267.0,0.000108]
[1744898828463,0.1780361,84268.0,84267.0,0.1186917]
[1744898828656,0.2373819,84268.0,84267.0,0.1186917]
[1744898829064,0.118696,84264.0,84263.0,0.4794952]
[1744898829763,0.118696,84264.0,84263.0,0.1186952]
[1744898830764,0.118696,84264.0,84263.0,0.1187752]
[1744898831362,0.479496,84264.0,84263.0,8e-05]
[1744898831563,0.479496,84264.0,84263.0,0.1187774]
[1744898832164,0.1187072,84256.0,84255.0,0.00017793]
[1744898832366,0.4795072,84256.0,84255.0,0.00017793]
[1744898832760,0.4795072,84256.0,84255.0,0.00025793]
[1744898833170,0.2023072,84256.0,84255.0,0.4029279]
[1744898833367,0.2023072,84256.0,84255.0,0.00025793]
[1744898833563,0.2023072,84256.0,84255.0,0.11896653]
[1744898833763,0.2023072,84256.0,84255.0,0.00025793]
[1744898833967,0.2033072,84256.0,84255.0,0.00017793]
[1744898834365,0.2043072,84256.0,84255.0,0.00025793]
[1744898834565,0.5651072,84256.0,84255.0,0.00025793]
[1744898834762,0.5641072,84256.0,84255.0,0.00025793]
[1744898834967,0.1187129,84252.0,84251.0,0.00510377]
[1744898836165,0.1187129,84252.0,84251.0,0.00518377]
[1744898837369,0.1197129,84252.0,84251.0,0.00518377]
[1744898837873,0.3807129,84252.0,84251.0,0.00518377]
[1744898838063,0.1207129,84252.0,84251.0,0.00518377]
[1744898838263,0.1197129,84252.0,84251.0,0.00518377]
[1744898838463,0.1207129,84252.0,84251.0,0.00510377]
[1744898838673,0.1207129,84252.0,84251.0,0.00518377]
[1744898838976,0.1207129,84252.0,84243.0,0.00017793]
[1744898838977,0.1187241,84244.0,84243.0,0.00017793]
[1744898839169,0.1187241,84244.0,84224.0,0.00592508]
[1744898839170,0.1187495,84226.0,84224.0,0.00592508]
[1744898839366,0.4795495,84226.0,84224.0,0.00592508]
[1744898839566,0.1187509,84225.0,84224.0,0.00592508]
[1744898839769,0.2114509,84225.0,84224.0,0.00592508]
[1744898839981,0.4814509,84225.0,84224.0,0.00592508]
[1744898840181,0.178153,84214.0,84211.0,0.0849]
[1744898840368,0.1187692,84212.0,84211.0,0.085008]
[1744898840680,0.1187692,84212.0,84211.0,0.000108]
[1744898840876,0.1187721,84210.0,84209.0,0.0849]
[1744898841080,0.1187721,84210.0,84209.0,0.25310991]
[1744898841280,0.4795721,84210.0,84209.0,0.0415]
[1744898841472,0.1187721,84212.0,84211.0,0.1187692]
[1744898841873,0.1187721,84212.0,84209.0,0.1008866]
[1744898841874,0.0593778,84222.0,84221.0,0.1177529]
[1744898842077,0.1781423,84219.0,84218.0,0.0593803]
[1744898842276,0.1187551,84222.0,84221.0,0.07235146]
[1744898842474,0.1187566,84221.0,84220.0,0.118758]
[1744898842677,0.1187566,84221.0,84220.0,0.21060991]
[1744898842871,0.1781475,84217.0,84216.0,0.1187574]
[1744898843079,0.0593742,84227.0,84221.0,0.28296137]
[1744898843278,0.1187551,84222.0,84221.0,0.19110806]
[1744898843472,0.1187664,84214.0,84213.0,0.3608]
[1744898843674,0.1187664,84214.0,84213.0,0.1187672]
[1744898843881,0.1187664,84214.0,84213.0,0.40180857]
[1744898844275,0.1781502,84214.0,84213.0,0.28304137]
[1744898844473,0.1781502,84214.0,84213.0,0.40172917]
[1744898844682,0.1781502,84214.0,84213.0,0.40180917]
[1744898844878,0.1791502,84214.0,84213.0,0.40380917]
[1744898845082,0.1791502,84214.0,84213.0,0.28504137]
[1744898846575,0.001,84214.0,84213.0,0.28504137]
[1744898846881,0.1197664,84214.0,84213.0,0.28504137]
[1744898847393,0.1197664,84214.0,84213.0,0.28496137]
[1744898847587,0.4805664,84214.0,84213.0,0.00208]
[1744898847978,0.4805664,84214.0,84213.0,0.002]
[1744898848186,0.4805664,84214.0,84213.0,0.00208]
[1744898848482,0.4805664,84214.0,84213.0,0.002]
[1744898848687,0.4805664,84214.0,84213.0,0.00208]
[1744898848881,0.4805664,84214.0,84213.0,0.002]
[1744898849084,0.4805664,84214.0,84213.0,0.00208]
[1744898849386,1.99370665,84180.0,84164.0,0.3608]
[1744898849585,0.1188222,84175.0,84173.0,0.02561736]
[1744898849790,2.11252105,84180.0,84179.0,0.28296137]
[1744898851291,2.11352105,84180.0,84179.0,0.28296137]
[1744898851883,0.1188229,84174.0,84173.0,0.1239322]
[1744898852089,0.1188229,84174.0,84173.0,0.0051085]
[1744898852384,0.1188229,84174.0,84173.0,0.28814987]
[1744898853999,0.1188229,84174.0,84173.0,0.21579841]
[1744898854187,0.1188257,84172.0,84171.0,0.00017816]
[1744898854686,0.1188257,84172.0,84171.0,0.00025816]
[1744898854889,0.3608,84174.0,84171.0,0.28321953]
[1744898855196,0.1188229,84174.0,84173.0,0.28296137]
[1744898855883,0.1188257,84172.0,84171.0,0.00017816]
[1744898856191,0.1198257,84172.0,84171.0,0.00017816]
[1744898856587,0.1188257,84172.0,84171.0,0.00017816]
[1744898857086,0.2024257,84172.0,84171.0,0.00017816]
[1744898857393,0.2024257,84172.0,84171.0,0.00025816]
[1744898857584,0.1601257,84172.0,84171.0,0.00025816]
[1744898858103,0.1611257,84172.0,84171.0,0.00025816]
[1744898858494,0.1621257,84172.0,84171.0,0.00025816]
[1744898858990,0.1621257,84172.0,84171.0,0.00017816]
[1744898859496,0.1611257,84172.0,84171.0,0.00017816]
[1744898859795,0.1198257,84172.0,84171.0,0.00025816]
[1744898860294,0.1198257,84172.0,84171.0,0.28321953]
[1744898860591,0.00017816,84188.0,84179.0,0.1188158]
[1744898860782,0.00017816,84188.0,84179.0,0.40077717]
[1744898861282,2.11252105,84180.0,84179.0,0.40077717]
[1744898861478,2.11252105,84180.0,84179.0,0.44047717]
[1744898862002,2.11252105,84180.0,84179.0,0.43947717]
[1744898862296,2.47332105,84180.0,84179.0,0.32266137]
[1744898862593,0.1188158,84179.0,84178.0,0.0433]
[1744898862786,0.1975158,84179.0,84178.0,0.0433]
[1744898863492,0.1188243,84173.0,84172.0,0.039808]
[1744898863797,0.4796243,84173.0,84172.0,0.039808]
[1744898863983,0.4796243,84173.0,84172.0,0.0397]
[1744898864183,0.4796243,84173.0,84172.0,0.03978]
[1744898864383,0.1188243,84173.0,84172.0,0.32266137]
[1744898864592,0.1188243,84173.0,84172.0,0.32274137]
[1744898864797,0.1188243,84173.0,84172.0,0.36204137]
[1744898865694,0.1188243,84173.0,84172.0,0.36404137]
[1744898865695,0.1198243,84173.0,84172.0,0.36404137]
[1744898866093,0.1188342,84166.0,84165.0,0.000108]
[1744898866396,0.1188356,84165.0,84164.0,0.038]
[1744898866593,0.0594169,84167.0,84166.0,0.1188342]
[1744898866800,0.3618,84173.0,84172.0,0.1188257]
[1744898867199,0.3618,84173.0,84172.0,0.32943561]
[1744898867395,0.4806243,84173.0,84172.0,0.21060991]
[1744898867895,0.4806243,84173.0,84172.0,0.29220991]
[1744898868695,0.3618,84173.0,84172.0,0.41203561]
[1744898868899,0.001,84173.0,84172.0,0.41203561]
[1744898869203,0.1782338,84176.0,84175.0,0.1188199]
[1744898869499,0.1782338,84176.0,84175.0,0.32842981]
[1744898870004,0.1782338,84176.0,84175.0,0.32742981]
[1744898870303,0.1782338,84176.0,84175.0,0.21060991]
[1744898871002,0.1782338,84176.0,84175.0,0.32943141]
[1744898871603,1.99370665,84180.0,84179.0,0.1178158]
[1744898871901,1.99370665,84180.0,84179.0,0.32842571]
[1744898872101,2.11252105,84180.0,84179.0,0.32842571]
[1744898872303,1.99370665,84180.0,84179.0,0.32842571]
[1744898872505,1.99370665,84180.0,84179.0,0.40502571]
[1744898872708,1.99470665,84180.0,84179.0,0.40702571]
[1744898873203,0.1187977,84193.0,84192.0,0.1187973]
[1744898873398,0.4795918,84196.0,84195.0,0.21060991]
[1744898873706,0.1188003,84190.0,84189.0,0.0393]
[1744898874707,0.1188003,84190.0,84189.0,0.1954017]
[1744898875103,0.1188003,84190.0,84189.0,0.40601161]
[1744898875400,0.1188003,84190.0,84189.0,0.34661011]
[1744898875603,0.3608,84209.0,84197.0,0.21060991]
[1744898875802,0.3608,84209.0,84201.0,0.32939471]
[1744898875994,0.3608,84217.0,84201.0,0.32939471]
[1744898876193,0.0593839,84213.0,84201.0,0.32939471]
[1744898876403,0.3608,84206.0,84201.0,0.36967471]
[1744898876600,0.3608,84206.0,84201.0,0.36867471]
[1744898876991,0.3608,84206.0,84201.0,0.36767471]
[1744898877393,0.08953545,84222.0,84210.0,0.0593858]
[1744898877598,0.08953545,84222.0,84221.0,0.69016651]
[1744898878398,0.08953545,84222.0,84221.0,0.32936651]
[1744898878798,0.08953545,84222.0,84221.0,0.36856651]
[1744898879002,0.08953545,84222.0,84221.0,0.72936651]
[1744898879203,0.08953545,84222.0,84221.0,0.378695]
[1744898879400,0.08953545,84222.0,84221.0,0.739495]
[1744898879909,0.005,84228.0,84221.0,0.739495]
[1744898879910,0.11941589,84230.0,84227.0,0.21060991]
[1744898880200,0.11941589,84230.0,84229.0,0.32935521]
[1744898880625,0.11941589,84230.0,84229.0,0.40945521]
[1744898881103,0.00017816,84230.0,84229.0,0.40945521]
[1744898881311,0.53909466,84230.0,84227.0,0.002]
[1744898881608,0.47972336,84230.0,84229.0,0.1188253]
[1744898881792,0.48072336,84230.0,84229.0,0.1228253]
[1744898881997,0.48072336,84230.0,84229.0,0.1227453]
[1744898882395,0.36197816,84230.0,84229.0,0.1187453]
[1744898882601,0.36197816,84230.0,84229.0,0.1188253]
[1744898882796,0.00117816,84230.0,84229.0,0.32943521]
[1744898882995,0.00117816,84230.0,84229.0,0.40853521]
[1744898882996,0.00017816,84230.0,84229.0,0.40853521]
[1744898883204,0.00017816,84230.0,84229.0,0.41053521]
[1744898884107,0.3608,84238.0,84237.0,0.118734]
[1744898884296,0.3608,84238.0,84237.0,0.32934391]
[1744898884698,0.4795326,84238.0,84237.0,0.32934391]
[1744898885103,0.4795326,84238.0,84237.0,0.32942391]
[1744898885507,0.4795326,84238.0,84237.0,0.118814]
[1744898885910,0.4795326,84238.0,84237.0,0.120814]
[1744898886509,0.4795326,84238.0,84237.0,0.122814]
[1744898887611,0.4795326,84238.0,84237.0,0.00408]
[1744898888006,0.4795326,84238.0,84237.0,0.122734]
[1744898888211,0.4795326,84238.0,84237.0,0.122814]
[1744898889008,0.4795326,84238.0,84237.0,0.120814]
[1744898889916,0.4795326,84238.0,84237.0,0.121814]
[1744898890317,0.4795326,84238.0,84237.0,0.119814]
[1744898890616,0.4795326,84238.0,84237.0,0.120814]
[1744898890814,0.4795326,84238.0,84237.0,0.00208]
[1744898891012,0.1187453,84229.0,84228.0,0.2112654]
[1744898891212,0.1187453,84229.0,84228.0,0.09252]
[1744898891409,0.1954453,84229.0,84228.0,0.1187467]
[1744898891613,0.1954453,84229.0,84228.0,0.1188267]
[1744898892704,0.1954453,84229.0,84228.0,0.1208267]
[1744898893123,0.1954453,84229.0,84228.0,0.1188267]
[1744898893315,0.1954453,84229.0,84228.0,0.1208267]
[1744898894422,0.1954453,84229.0,84228.0,0.1228267]
[1744898895029,0.1954453,84229.0,84228.0,0.33343661]
[1744898895319,0.1954453,84229.0,84228.0,0.33243661]
[1744898895523,0.1954453,84229.0,84228.0,0.37053661]
[1744898895725,0.2358453,84229.0,84228.0,0.37053661]
[1744898896027,0.1171,84229.0,84228.0,0.37053661]
[1744898896218,0.0792,84229.0,84228.0,0.40863661]
[1744898897230,0.0792,84229.0,84228.0,0.40663661]
[1744898897527,0.0802,84229.0,84228.0,0.41163661]
[1744898900028,0.0802,84229.0,84228.0,0.43533661]
[1744898900225,0.1989453,84229.0,84228.0,0.27848991]
[1744898902122,0.1989453,84229.0,84228.0,0.02978]
[1744898902320,0.2486453,84229.0,84228.0,0.02978]
[1744898902528,0.2386453,84229.0,84228.0,0.0297]
[1744898902722,0.2386453,84229.0,84228.0,0.02978]
[1744898902923,0.2386453,84229.0,84228.0,0.0297]
[1744898903138,0.2386453,84229.0,84228.0,0.02978]
[1744898903922,0.1187664,84214.0,84211.0,0.0918]
[1744898904118,0.4795664,84214.0,84211.0,0.0918]
[1744898904321,0.4795664,84214.0,84213.0,0.00921513]
[1744898904522,0.5938664,84214.0,84213.0,0.00017816]
[1744898904732,0.5938664,84214.0,84213.0,0.00025816]
[1744898905036,0.1187834,84202.0,84201.0,0.000108]
[1744898905532,0.4808,84202.0,84179.0,0.000108]
[1744898905731,0.1188045,84187.0,84180.0,0.28454072]
[1744898905925,0.0594049,84184.0,84183.0,0.29991391]
[1744898906533,0.0594049,84184.0,84183.0,0.51060382]
[1744898907036,0.1179,84186.0,84183.0,0.51060382]
[1744898907335,0.2367059,84186.0,84185.0,0.21060991]
[1744898907529,0.2367059,84186.0,84185.0,0.20960991]
[1744898907934,0.2367059,84186.0,84185.0,0.20860991]
[1744898908330,0.5975059,84186.0,84185.0,0.20860991]
[1744898908736,0.4387,84186.0,84185.0,0.20860991]
[1744898909036,0.1967059,84186.0,84185.0,0.20860991]
[1744898909232,0.0779,84186.0,84185.0,0.20868991]
[1744898909431,0.0789,84186.0,84185.0,0.20868991]
[1744898909630,0.1977059,84186.0,84185.0,0.24538991]
[1744898910026,0.1967059,84186.0,84185.0,0.24638991]
[1744898910736,0.1977059,84186.0,84185.0,0.24538991]
[1744898911036,0.3608,84197.0,84185.0,0.49538991]
[1744898911341,0.11897136,84195.0,84194.0,0.20860991]
[1744898911831,0.11897136,84195.0,84189.0,0.0367]
[1744898911832,0.1188003,84190.0,84189.0,0.0367]
[1744898912229,0.1188003,84190.0,84189.0,0.24530991]
[1744898912627,0.3608,84197.0,84189.0,0.24530991]
[1744898912934,0.0381,84196.0,84194.0,0.32740451]
[1744898913122,0.3608,84199.0,84194.0,0.32740451]
[1744898913330,0.3608,84199.0,84194.0,0.32940451]
[1744898913525,0.0381,84198.0,84194.0,0.36700451]
[1744898914229,0.0381,84198.0,84194.0,0.36708451]
[1744898915127,0.0593953,84197.0,84194.0,0.36708451]
[1744898915437,0.1568898,84198.0,84194.0,0.36708451]
[1744898915636,0.1187907,84197.0,84194.0,0.36708451]
[1744898915933,0.11997136,84195.0,84194.0,0.25128991]
[1744898916135,0.11997136,84195.0,84194.0,0.37008451]
[1744898916325,0.11997136,84195.0,84194.0,0.36808451]
[1744898916533,0.00117816,84195.0,84194.0,0.37000451]
[1744898916726,0.11997136,84195.0,84194.0,0.37008451]
[1744898917130,0.11997136,84195.0,84194.0,0.25228991]
[1744898917327,0.11997136,84195.0,84194.0,0.21468991]
[1744898917543,0.11997136,84195.0,84194.0,0.21460991]
[1744898917736,0.11997136,84195.0,84194.0,0.21368991]
[1744898917933,0.11997136,84195.0,84194.0,0.00508]
[1744898918235,0.11997136,84195.0,84194.0,0.00308]
[1744898918437,0.11997136,84195.0,84194.0,0.004]
[1744898919231,0.11897136,84195.0,84194.0,0.00108]
[1744898919427,0.39897136,84195.0,84194.0,0.00208]
[1744898919631,0.40897136,84195.0,84194.0,0.00208]
[1744898920044,0.1188158,84179.0,84178.0,0.00017816]
[1744898920247,0.4796158,84179.0,84178.0,0.00017816]
[1744898920537,0.1188229,84174.0,84173.0,0.0051085]
[1744898920727,0.1188229,84174.0,84173.0,0.013826]
[1744898920928,0.1188229,84174.0,84173.0,0.0051085]
[1744898921332,0.1288229,84174.0,84173.0,0.0051885]
[1744898921536,0.1288229,84174.0,84173.0,0.0051085]
[1744898921737,0.1288229,84174.0,84173.0,0.0051885]
[1744898921934,0.1188229,84174.0,84173.0,0.0051885]
[1744898922134,0.0803,84178.0,84177.0,0.1188186]
[1744898922341,0.36297816,84195.0,84194.0,0.1187946]
[1744898922545,0.1187989,84191.0,84190.0,0.20860991]
[1744898922736,0.1187989,84191.0,84190.0,0.32741021]
[1744898922936,0.1188018,84189.0,84188.0,0.20860991]
[1744898923143,0.1188018,84189.0,84188.0,0.32741171]
[1744898923344,0.1188018,84189.0,84188.0,0.32649171]
[1744898923739,0.0593995,84191.0,84190.0,0.1188003]
[1744898924036,0.0392,84194.0,84189.0,0.038]
[1744898924037,0.1188003,84190.0,84189.0,0.038]
[1744898924232,0.1188003,84190.0,84189.0,0.1568017]
[1744898924429,0.0965993,84192.0,84191.0,0.1187989]
[1744898924728,0.1188003,84190.0,84189.0,0.0974007]
[1744898925244,0.0392,84194.0,84189.0,0.24560991]
[1744898925443,0.0392,84194.0,84193.0,0.32640591]
[1744898925837,0.36097816,84195.0,84194.0,0.1187946]
[1744898925838,0.00017816,84195.0,84194.0,0.1187946]
[1744898926149,0.00017816,84195.0,84194.0,0.40170451]
[1744898926837,0.00017816,84195.0,84194.0,0.36410451]
[1744898927038,0.00017816,84195.0,84194.0,0.40240451]
[1744898928550,0.11897136,84195.0,84194.0,0.40240451]
[1744898928750,0.11997136,84195.0,84194.0,0.40240451]
[1744898929750,0.11997136,84195.0,84194.0,0.32648451]
[1744898930152,0.11997136,84195.0,84194.0,0.20768991]
[1744898930645,0.11997136,84195.0,84194.0,8e-05]
[1744898930847,0.00117816,84195.0,84188.0,0.17973117]
[1744898931143,0.00117816,84195.0,84192.0,0.1187966]
[1744898931144,0.1781991,84193.0,84192.0,0.1187966]
[1744898931350,0.0593986,84193.0,84192.0,0.1187966]
[1744898931546,0.0977986,84193.0,84192.0,0.1187966]
[1744898932646,0.1188003,84190.0,84189.0,0.1574013]
[1744898932848,0.1188003,84190.0,84189.0,0.36501121]
[1744898933047,0.1187982,84192.0,84191.0,0.1187975]
[1744898933243,0.1551982,84192.0,84191.0,0.1187975]
[1744898933647,0.1188003,84190.0,84189.0,0.0980006]
[1744898933852,0.1188003,84190.0,84189.0,0.30561051]
[1744898934242,0.1188003,84190.0,84189.0,0.30761051]
[1744898934442,0.1781976,84192.0,84191.0,0.1187989]
[1744898934642,0.1781976,84192.0,84191.0,0.32640881]
[1744898934841,0.1781976,84192.0,84191.0,0.1187989]
[1744898935751,0.2153976,84192.0,84191.0,0.1187989]
[1744898936048,0.00017816,84195.0,84194.0,0.1187946]
[1744898936250,0.1947721,84210.0,84209.0,0.1187735]
[1744898936437,0.1947721,84210.0,84208.0,0.0374]
[1744898936438,0.1187735,84209.0,84208.0,0.0374]
[1744898936640,0.4795735,84209.0,84208.0,0.0374]
[1744898936945,0.5165735,84209.0,84208.0,0.1561749]
[1744898937338,0.1557735,84209.0,84208.0,0.1187749]
[1744898937538,0.1187763,84207.0,84206.0,0.0593882]
[1744898937746,0.1187763,84207.0,84206.0,0.26699811]
[1744898938149,0.1187763,84207.0,84206.0,0.20760991]
[1744898938350,0.1187848,84203.0,84202.0,0.2375622]
[1744898938538,0.1187806,84204.0,84203.0,0.1187805]
[1744898938738,0.1557806,84204.0,84203.0,0.1187805]
[1744898938939,0.1557806,84204.0,84203.0,0.32639041]
[1744898939346,0.037,84204.0,84203.0,0.32639041]
[1744898939651,0.1557805,84204.0,84203.0,0.36499041]
[1744898940448,0.038,84204.0,84203.0,0.36399041]
[1744898940662,0.001,84204.0,84203.0,0.40209041]
[1744898941252,0.002,84204.0,84203.0,0.40209041]
[1744898941848,0.1207805,84204.0,84203.0,0.36399041]
[1744898943247,0.002,84204.0,84203.0,0.36399041]
[1744898943447,0.002,84204.0,84203.0,0.40359041]
[1744898944052,0.0391,84204.0,84203.0,0.40359041]
[1744898945552,0.1578805,84204.0,84203.0,0.24620991]
[1744898945953,0.1578805,84204.0,84203.0,0.32639181]
[1744898946540,0.1568805,84204.0,84203.0,0.32639181]
[1744898946743,0.1568805,84204.0,84203.0,0.32847181]
[1744898947355,0.1568805,84204.0,84203.0,0.00208]
[1744898947555,0.1568805,84204.0,84203.0,0.002]
[1744898947756,0.1187946,84194.0,84193.0,0.000108]
[1744898947961,0.1188017,84189.0,84186.0,0.0594028]
[1744898948180,0.1188059,84186.0,84185.0,0.18128297]
[1744898948459,0.4796059,84186.0,84185.0,0.18128297]
[1744898948667,0.4796059,84186.0,84185.0,0.18136297]
[1744898948855,0.4796059,84186.0,84185.0,0.18128297]
[1744898949244,0.4796059,84186.0,84185.0,0.18136297]
[1744898949551,0.4896059,84186.0,84185.0,0.12186297]
[1744898950153,0.4896059,84186.0,84185.0,8e-05]
[1744898950451,0.4896059,84186.0,84185.0,0.1188873]
[1744898950859,0.4916059,84186.0,84185.0,0.1198873]
[1744898951454,0.1308059,84186.0,84185.0,0.1198873]
[1744898951856,0.1318059,84186.0,84185.0,0.1198873]
[1744898952159,0.2117059,84186.0,84185.0,0.1198073]
[1744898952360,0.2117059,84186.0,84185.0,0.1198873]
[1744898952862,0.5725059,84186.0,84185.0,0.1198873]
[1744898953063,0.5615059,84186.0,84185.0,0.1208873]
[1744898953263,0.5615059,84186.0,84185.0,0.00208]
[1744898953658,0.5615059,84186.0,84185.0,0.00108]
[1744898953659,0.5605059,84186.0,84185.0,0.00108]
[1744898954062,0.5605059,84186.0,84185.0,8e-05]
[1744898954257,0.5615059,84186.0,84185.0,0.00208]
[1744898954462,0.5605059,84186.0,84185.0,0.00208]
[1744898954658,0.5605059,84186.0,84185.0,0.00308]
[1744898954854,0.5605059,84186.0,84185.0,0.003]
[1744898955251,0.5605059,84186.0,84185.0,0.002]
[1744898955566,0.5605059,84186.0,84185.0,0.003]
[1744898955861,0.5605059,84186.0,84185.0,0.00308]
[1744898955862,0.5595059,84186.0,84185.0,0.00308]
[1744898956063,0.5595059,84186.0,84185.0,0.002]
[1744898956251,0.1188172,84178.0,84177.0,0.00017816]
[1744898956562,0.4796172,84178.0,84177.0,0.00025816]
[1744898957064,0.1188553,84151.0,84147.0,0.00511007]
[1744898957264,0.1188596,84148.0,84147.0,0.00511007]
[1744898958360,0.1188737,84138.0,84137.0,0.35932118]
[1744898958566,0.4796737,84138.0,84137.0,0.35932118]
[1744898958762,0.1188751,84137.0,84136.0,0.02]
[1744898959063,0.1615751,84137.0,84136.0,0.02]
[1744898959461,0.1615751,84137.0,84132.0,0.35932118]
[1744898959462,0.1188808,84133.0,84132.0,0.35932118]
[1744898959666,0.1188878,84128.0,84121.0,0.00521965]
[1744898959863,0.1188878,84128.0,84121.0,0.00511165]
[1744898960162,0.1188963,84122.0,84121.0,0.00511165]
[1744898960665,0.0821,84127.0,84126.0,0.1188907]
[1744898960862,0.0417,84130.0,84128.0,0.1188878]
[1744898961067,0.003,84137.0,84128.0,0.32649771]
[1744898961279,0.118881,84133.0,84128.0,0.32649771]
[1744898961458,0.1188826,84132.0,84128.0,0.36789771]
[1744898961661,0.1188837,84131.0,84128.0,0.36789771]
[1744898961866,0.4796864,84129.0,84128.0,0.1188878]
[1744898962068,0.3608,84129.0,84128.0,8e-05]
[1744898962267,0.1188892,84127.0,84126.0,0.1188899]
[1744898962763,0.3608,84129.0,84128.0,0.1188878]
[1744898962965,0.4806864,84129.0,84128.0,0.1188878]
[1744898963181,0.001,84129.0,84128.0,0.32649771]
[1744898963372,0.1783277,84132.0,84131.0,0.1783202]
[1744898963569,0.1783277,84132.0,84131.0,0.0584408]
[1744898964065,0.36097827,84136.0,84133.0,0.0594398]
[1744898964263,0.47985477,84136.0,84135.0,0.1188779]
[1744898964664,0.36097827,84136.0,84135.0,0.1575779]
[1744898965060,0.36097827,84136.0,84135.0,0.36518781]
[1744898965367,0.47985477,84136.0,84135.0,0.24630991]
[1744898965867,0.47985477,84136.0,84135.0,0.24530991]
[1744898966067,0.11905477,84136.0,84135.0,0.36418781]
[1744898966268,0.00017827,84136.0,84135.0,0.36418781]
[1744898966463,0.00117827,84136.0,84135.0,0.72698781]
[1744898966669,1e-08,84136.0,84135.0,0.83690781]
[1744898966870,1e-08,84136.0,84135.0,2.33690781]
[1744898968069,1e-08,84136.0,84135.0,0.83690781]
[1744898969575,0.11887651,84136.0,84135.0,0.83690781]
[1744898969871,0.11887651,84136.0,84135.0,0.71802991]
[1744898970068,0.11887651,84136.0,84135.0,0.35722991]
[1744898970268,0.11887651,84136.0,84135.0,0.47610781]
[1744898970767,1e-08,84136.0,84135.0,0.47610781]
[1744898971168,1e-08,84136.0,84135.0,0.83690781]
[1744898972479,1e-08,84136.0,84135.0,0.47610781]
[1744898972860,0.04290001,84136.0,84135.0,0.47610781]
[1744898973061,1e-08,84136.0,84135.0,0.47610781]
[1744898973261,1e-08,84136.0,84135.0,0.83690781]
[1744898974169,1e-08,84136.0,84135.0,0.87730781]
[1744898974668,1e-08,84136.0,84135.0,0.91830781]
[1744898975972,0.1188567,84152.0,84151.0,0.1188539]
[1744898976166,0.1188567,84152.0,84151.0,0.1615539]
[1744898976668,0.1188567,84152.0,84151.0,0.1616339]
[1744898977271,0.1198567,84152.0,84151.0,0.1616339]
[1744898977973,0.1198567,84152.0,84151.0,0.04278]
[1744898978183,0.1589567,84152.0,84151.0,0.04278]
[1744898978373,0.1589567,84152.0,84151.0,0.0427]
[1744898978673,0.1589567,84152.0,84151.0,0.1616353]
[1744898978674,0.001,84152.0,84151.0,0.1616353]
[1744898978970,0.002,84152.0,84151.0,0.36924521]
[1744898979477,0.002,84152.0,84151.0,0.41414521]
[1744898979677,0.001,84152.0,84151.0,0.41414521]
[1744898980176,0.00017827,84160.0,84159.0,0.118844]
[1744898980364,0.11902087,84160.0,84159.0,0.32645391]
[1744898980562,0.11902087,84160.0,84159.0,0.36735391]
[1744898980977,0.11902087,84160.0,84159.0,0.37647069]
[1744898981477,0.00017827,84160.0,84159.0,0.37647069]
[1744898981978,0.1782336,84175.0,84174.0,0.1188215]
[1744898982162,0.0594094,84177.0,84174.0,0.32643141]
[1744898982365,0.48462,84176.0,84175.0,0.32643141]
[1744898982766,0.005,84176.0,84175.0,0.32643141]
[1744898982966,0.4114,84186.0,84185.0,0.1188073]
[1744898983165,0.3608,84191.0,84187.0,0.1178045]
[1744898983369,0.3608,84191.0,84187.0,0.32541441]
[1744898983777,0.00017827,84194.0,84187.0,0.32541441]
[1744898983971,0.11923773,84191.0,84190.0,0.1188003]
[1744898984679,0.23803663,84191.0,84190.0,0.1188003]
[1744898984879,0.23803663,84191.0,84190.0,0.1188803]
[1744898985081,0.23803663,84191.0,84190.0,0.1168803]
[1744898985695,0.23903663,84191.0,84190.0,0.1168803]
[1744898987882,0.12023773,84191.0,84190.0,0.32449021]
[1744898988075,0.12023773,84191.0,84190.0,0.36549021]
[1744898988477,0.001,84191.0,84190.0,0.32449021]
[1744898988677,0.1197989,84191.0,84190.0,0.2251603]
[1744898988885,0.251,84191.0,84190.0,0.1168003]
[1744898989186,0.1782106,84186.0,84185.0,0.1188073]
[1744898989484,0.0594036,84186.0,84185.0,0.1188073]
[1744898989784,0.0594036,84186.0,84185.0,0.1188873]
[1744898990372,0.0594036,84186.0,84185.0,0.1208873]
[1744898990684,0.0594036,84186.0,84185.0,0.1218873]
[1744898990885,0.0594016,84188.0,84187.0,0.1188045]
[1744898991583,0.0841,84190.0,84189.0,0.1188017]
[1744898991782,0.0841,84190.0,84189.0,0.32641161]
[1744898992084,0.2029003,84190.0,84189.0,0.1188017]
[1744898993083,0.2029003,84190.0,84189.0,0.1198017]
[1744898994392,0.0841,84190.0,84189.0,0.1198017]
[1744898994691,0.0841,84190.0,84189.0,0.1592017]
[1744898995192,0.0423,84190.0,84189.0,0.36681161]
[1744898995386,0.0423,84190.0,84189.0,0.40641161]
[1744898995582,0.005,84202.0,84193.0,0.26700721]
[1744898995888,0.005,84202.0,84201.0,0.1187848]
[1744898996078,0.0473,84202.0,84201.0,0.32639471]
[1744898996275,0.1660834,84202.0,84201.0,0.1187848]
[1744898996786,0.2091834,84202.0,84201.0,0.1187848]
[1744898997094,0.2101834,84202.0,84201.0,0.1187848]
[1744898998888,0.0473,84202.0,84201.0,0.32639471]
[1744898999087,0.0463,84202.0,84201.0,0.40799471]
[1744899000393,0.0463,84202.0,84201.0,0.1187848]
[1744899000593,0.0871,84202.0,84201.0,0.1187848]
[1744899001294,0.00017816,84210.0,84209.0,0.1187735]